bitfinex/quotes_SOLUSD_20240813
["timestamp","ask_amount","ask_price","bid_price","bid_amount"]
[1723557697162,0.8414149,147.54,147.53,0.12549]
[1723557697328,0.8414149,147.54,147.53,0.37647]
[1723557697533,0.8414149,147.54,147.53,0.50196]
[1723557699146,0.8414149,147.54,147.52,12.8349]
[1723557700359,0.8414149,147.54,147.53,0.12549]
[1723557700667,0.8414149,147.54,147.53,0.37647]
[1723557701246,0.8414149,147.54,147.53,0.50196]
[1723557702065,0.8414149,147.54,147.53,20.50196]
[1723557702367,0.8414149,147.54,147.53,65.50196]
[1723557703361,0.8414149,147.54,147.53,85.50196]
[1723557703664,38.66,147.66,147.56,0.12549]
[1723557703839,38.66,147.66,147.56,65.50196]
[1723557704345,38.66,147.68,147.58,0.12549]
[1723557704549,38.66,147.68,147.58,65.50196]
[1723557704774,1.69350315,147.67,147.58,20.50196]
[1723557705275,38.66,147.66,147.6,0.12549]
[1723557705449,1.69377133,147.65,147.6,0.50196]
[1723557705648,38.66,147.66,147.6,0.50196]
[1723557706053,1.69359747,147.65,147.6,0.50196]
[1723557706264,38.66,147.66,147.6,0.50196]
[1723557706656,38.66,147.68,147.6,12.63906]
[1723557707072,38.66,147.68,147.62,0.12549]
[1723557707274,0.8414149,147.69,147.62,0.50196]
[1723557708875,2.53450729,147.69,147.62,20.50196]
[1723557709098,0.8414149,147.69,147.62,20.50196]
[1723557709381,0.8414149,147.69,147.62,0.50196]
[1723557709551,2.53480249,147.69,147.62,0.50196]
[1723557709748,38.66,147.68,147.62,0.50196]
[1723557709958,1.69354797,147.67,147.62,0.50196]
[1723557710470,0.8414149,147.69,147.62,0.50196]
[1723557710953,40.35339606,147.68,147.62,0.50196]
[1723557711158,38.66,147.66,147.62,0.12549]
[1723557711359,1.69357659,147.65,147.61,0.12549]
[1723557711683,0.8414149,147.69,147.61,45.12549]
[1723557712348,0.8414149,147.69,147.62,20.0]
[1723557712551,0.8414149,147.69,147.64,0.12549]
[1723557712775,0.8414149,147.69,147.64,0.37647]
[1723557713003,0.8414149,147.69,147.65,0.12549]
[1723557713299,0.8414149,147.69,147.65,0.37647]
[1723557713598,0.8414149,147.69,147.65,0.12549]
[1723557716772,0.8414149,147.69,147.64,0.37647]
[1723557716973,41.19465497,147.69,147.6,12.1371]
[1723557717174,38.66,147.67,147.6,12.1371]
[1723557717409,39.5014149,147.69,147.6,12.1371]
[1723557717913,38.66,147.65,147.56,12.9751]
[1723557718202,0.8414149,147.69,147.57,38.66]
[1723557718793,0.8414149,147.69,147.58,20.0]
[1723557719305,0.8414149,147.69,147.64,0.12549]
[1723557719607,0.8414149,147.69,147.64,65.37647]
[1723557719772,0.8414149,147.69,147.64,0.25098]
[1723557720080,0.8414149,147.69,147.63,12.6595]
[1723557720677,38.66,147.68,147.59,12.6475]
[1723557720895,38.66,147.66,147.59,12.6475]
[1723557721275,38.66,147.68,147.59,12.6475]
[1723557721478,0.8414149,147.69,147.59,12.6475]
[1723557721673,0.8414149,147.69,147.6,20.0]
[1723557722292,0.8414149,147.69,147.62,20.0]
[1723557722608,0.8414149,147.69,147.64,0.12549]
[1723557722813,0.8414149,147.69,147.64,0.37647]
[1723557723025,0.8414149,147.69,147.65,0.12549]
[1723557723224,0.8414149,147.69,147.66,0.12549]
[1723557723392,0.8414149,147.69,147.66,0.25098]
[1723557723586,0.8414149,147.69,147.67,0.25098]
[1723557723918,0.8414149,147.69,147.68,0.25098]
[1723557724425,0.8414149,147.69,147.68,20.50196]
[1723557724599,0.8414149,147.69,147.68,65.50196]
[1723557725501,1.69239895,147.78,147.68,65.50196]
[1723557725706,1.69239895,147.78,147.7,0.12549]
[1723557725907,40.35227758,147.77,147.7,20.12549]
[1723557726100,1.6926482,147.76,147.7,0.12549]
[1723557726589,1.69266738,147.75,147.7,0.12549]
[1723557726792,40.35268127,147.75,147.68,20.0]
[1723557727019,47.12118127,147.75,147.68,20.0]
[1723557727216,45.0,147.74,147.64,20.0]
[1723557727417,38.66,147.75,147.64,20.0]
[1723557727618,1.6927462,147.76,147.64,20.0]
[1723557727789,38.66,147.77,147.64,20.0]
[1723557728442,1.69259218,147.76,147.66,0.12549]
[1723557728611,1.69231232,147.8,147.68,0.12549]
[1723557728813,38.66,147.82,147.68,65.50196]
[1723557729141,38.66,147.82,147.68,85.50196]
[1723557729321,40.35214163,147.82,147.68,85.50196]
[1723557729640,38.66,147.82,147.68,85.50196]
[1723557730343,38.66,147.79,147.68,20.0]
[1723557730507,38.66,147.74,147.67,12.374]
[1723557730934,50.8879,147.77,147.67,12.374]
[1723557731134,52.58056352,147.77,147.67,12.374]
[1723557731406,6.7682,147.75,147.63,45.1416]
[1723557731630,38.66,147.73,147.63,45.1416]
[1723557731839,53.46193498,147.74,147.63,12.6944]
[1723557731840,38.66,147.69,147.63,12.6944]
[1723557732010,1.69350375,147.68,147.59,43.2572]
[1723557732212,40.35359201,147.67,147.59,43.2572]
[1723557732412,1.69359201,147.67,147.59,43.2572]
[1723557732714,1.69349424,147.68,147.59,43.2572]
[1723557733050,38.66,147.65,147.59,12.6944]
[1723557733544,38.66,147.65,147.55,43.539]
[1723557733719,38.66,147.61,147.55,12.1687]
[1723557733924,46.69397188,147.64,147.55,12.1687]
[1723557733925,38.66,147.63,147.55,12.1687]
[1723557734138,38.66,147.65,147.55,12.1687]
[1723557734352,18.9344,147.69,147.55,50.8287]
[1723557734353,12.1631,147.69,147.55,50.8287]
[1723557734709,31.6031,147.71,147.56,51.0138]
[1723557734929,33.29653569,147.71,147.57,38.66]
[1723557735124,38.66,147.65,147.58,20.0]
[1723557735425,1.69408024,147.64,147.57,20.0]
[1723557735839,38.66,147.65,147.57,20.0]
[1723557736044,1.69415462,147.64,147.57,20.0]
[1723557736351,40.35399622,147.65,147.56,20.0]
[1723557736522,38.66,147.63,147.56,20.0]
[1723557736727,38.66,147.61,147.55,12.1687]
[1723557737023,38.66,147.59,147.5,12.8694]
[1723557737228,38.66,147.57,147.5,12.8694]
[1723557737443,38.66,147.55,147.47,32.5831]
[1723557737740,1.69510048,147.54,147.47,32.5831]
[1723557737971,38.66,147.53,147.46,12.3491]
[1723557738180,38.66,147.51,147.42,31.9264]
[1723557738466,46.69548725,147.52,147.36,20.0]
[1723557738467,38.66,147.45,147.38,31.9264]
[1723557738840,38.66,147.45,147.36,12.2575]
[1723557739181,1.69637697,147.44,147.36,12.2575]
[1723557739345,46.69637697,147.44,147.36,12.2575]
[1723557739753,45.0,147.44,147.36,12.2575]
[1723557739973,46.45,147.45,147.36,12.2575]
[1723557740177,45.0,147.44,147.36,12.2575]
[1723557740670,1.69640108,147.43,147.37,20.0]
[1723557740842,45.0,147.44,147.36,12.2575]
[1723557741237,46.45,147.42,147.32,0.8414149]
[1723557741453,48.14672459,147.42,147.32,0.8414149]
[1723557741850,46.45,147.42,147.32,0.8414149]
[1723557742046,1.69662812,147.41,147.32,0.8414149]
[1723557742360,46.45,147.36,147.32,0.8414149]
[1723557742946,48.14733384,147.36,147.32,0.8414149]
[1723557743150,46.45,147.36,147.32,0.8414149]
[1723557743347,1.69733759,147.39,147.32,0.8414149]
[1723557743551,46.45,147.42,147.32,0.8414149]
[1723557744082,1.69664711,147.48,147.32,0.8414149]
[1723557744249,58.8432,147.49,147.32,0.8414149]
[1723557744250,58.8432,147.49,147.32,32.7149149]
[1723557744456,58.8432,147.49,147.34,0.12549]
[1723557744673,46.45,147.46,147.34,45.37647]
[1723557744849,46.45,147.46,147.36,0.12549]
[1723557745051,58.8432,147.49,147.36,0.37647]
[1723557745349,46.45,147.46,147.37,0.12549]
[1723557745555,46.45,147.46,147.38,0.12549]
[1723557745770,46.45,147.46,147.38,0.37647]
[1723557745974,46.45,147.46,147.39,0.12549]
[1723557746147,46.45,147.46,147.39,0.37647]
[1723557746344,46.45,147.46,147.39,0.12549]
[1723557746650,53.2301,147.49,147.39,0.25098]
[1723557746868,6.7815,147.46,147.4,0.12549]
[1723557747065,53.2315,147.46,147.38,20.0]
[1723557747686,46.45,147.46,147.38,20.0]
[1723557747987,53.2315,147.46,147.37,12.45388]
[1723557748168,46.45,147.46,147.37,12.45388]
[1723557748478,46.45,147.46,147.37,0.12549]
[1723557748646,46.45,147.49,147.38,0.25098]
[1723557748987,21.69611222,147.48,147.38,0.25098]
[1723557749359,20.0,147.48,147.38,0.25098]
[1723557749569,20.0,147.48,147.39,0.25098]
[1723557749750,46.45,147.49,147.41,0.12549]
[1723557749948,21.6958495,147.48,147.41,0.37647]
[1723557750273,21.6958495,147.48,147.4,0.12549]
[1723557750485,53.2315,147.46,147.39,0.25098]
[1723557750689,46.45,147.46,147.39,0.12549]
[1723557751056,1.69612742,147.45,147.39,0.12549]
[1723557751358,46.69612742,147.45,147.39,0.12549]
[1723557751564,46.45,147.46,147.39,0.12549]
[1723557751871,1.69620532,147.45,147.39,0.12549]
[1723557752066,46.69620532,147.45,147.39,0.25098]
[1723557752674,45.0,147.45,147.39,0.25098]
[1723557752871,46.45,147.46,147.4,0.12549]
[1723557753062,1.6961368,147.45,147.39,0.25098]
[1723557753270,20.0,147.48,147.4,0.25098]
[1723557753777,20.0,147.48,147.41,0.25098]
[1723557753778,21.69599978,147.48,147.41,0.25098]
[1723557753985,6.7811,147.47,147.33,20.0]
[1723557754197,46.45,147.46,147.34,65.50196]
[1723557754390,1.69600814,147.46,147.36,0.12549]
[1723557754582,21.69601071,147.48,147.36,45.50196]
[1723557754885,28.47661071,147.48,147.38,0.12549]
[1723557755186,20.0,147.48,147.38,0.50196]
[1723557755385,1.69590982,147.47,147.38,0.50196]
[1723557755591,21.69600859,147.48,147.38,45.50196]
[1723557755763,46.45,147.49,147.4,0.12549]
[1723557755959,1.69569658,147.48,147.4,45.50196]
[1723557756159,6.781,147.47,147.4,0.50196]
[1723557756357,1.69601328,147.46,147.4,0.50196]
[1723557756583,1.69604478,147.45,147.4,0.50196]
[1723557757180,46.45,147.46,147.4,0.50196]
[1723557757483,46.45,147.49,147.4,0.50196]
[1723557757870,53.2302,147.49,147.4,0.50196]
[1723557758078,46.45,147.49,147.4,0.50196]
[1723557758269,53.2301,147.49,147.4,0.50196]
[1723557758471,6.7811,147.47,147.4,0.50196]
[1723557758771,6.7806,147.48,147.4,0.50196]
[1723557758970,1.69602556,147.47,147.4,0.50196]
[1723557759171,53.2315,147.46,147.4,0.25098]
[1723557759388,1.69612493,147.45,147.4,0.25098]
[1723557759577,46.45,147.46,147.4,0.25098]
[1723557759997,8.47787773,147.45,147.33,20.0]
[1723557760197,46.45,147.43,147.33,20.0]
[1723557760698,46.45,147.43,147.32,45.9619149]
[1723557760895,46.45,147.4,147.32,45.9619149]
[1723557761475,46.45,147.43,147.32,45.9619149]
[1723557762197,53.2331,147.43,147.33,20.25098]
[1723557762386,46.45,147.4,147.32,45.9619149]
[1723557762598,1.69683031,147.39,147.32,45.9619149]
[1723557762767,45.0,147.39,147.32,45.9619149]
[1723557762972,46.45,147.4,147.32,45.9619149]
[1723557763171,53.2343,147.4,147.32,45.9619149]
[1723557763490,46.69694812,147.39,147.32,14.0884149]
[1723557764301,46.45,147.4,147.32,14.0884149]
[1723557764899,46.45,147.4,147.33,0.25098]
[1723557765501,46.45,147.4,147.34,0.12549]
[1723557765689,46.45,147.4,147.34,0.25098]
[1723557765891,46.45,147.43,147.36,0.12549]
[1723557766219,46.45,147.43,147.36,0.25098]
[1723557766510,8.47995477,147.42,147.36,0.25098]
[1723557766685,8.47995477,147.42,147.36,0.12549]
[1723557766886,1.69635477,147.42,147.36,0.12549]
[1723557767101,46.45,147.43,147.36,0.25098]
[1723557767401,46.45,147.43,147.37,0.25098]
[1723557767607,46.45,147.43,147.38,0.12549]
[1723557767906,1.6963757,147.42,147.35,31.8366]
[1723557768208,53.2345,147.4,147.33,20.0]
[1723557768409,48.14689041,147.4,147.33,20.0]
[1723557768610,46.45,147.4,147.33,20.0]
[1723557768811,46.45,147.37,147.31,32.6047]
[1723557769106,46.45,147.37,147.32,0.8414149]
[1723557770694,1.6969668,147.36,147.32,0.8414149]
[1723557770902,46.45,147.37,147.32,0.8414149]
[1723557771778,46.45,147.37,147.33,0.50196]
[1723557771979,45.5236,147.42,147.33,0.50196]
[1723557772183,20.0,147.41,147.33,0.50196]
[1723557772402,38.74,147.4,147.33,0.50196]
[1723557772820,45.5243,147.4,147.33,0.50196]
[1723557773190,38.74,147.4,147.33,0.50196]
[1723557773394,38.74,147.42,147.33,0.50196]
[1723557774295,38.74,147.4,147.33,0.50196]
[1723557774705,38.74,147.44,147.35,0.12549]
[1723557774926,38.74,147.44,147.35,65.50196]
[1723557775494,38.74,147.46,147.35,65.50196]
[1723557775698,45.5216,147.46,147.35,65.50196]
[1723557775992,8.47816951,147.45,147.35,65.50196]
[1723557776214,38.74,147.44,147.35,65.50196]
[1723557776426,38.74,147.44,147.37,0.12549]
[1723557776725,38.74,147.44,147.37,0.50196]
[1723557776912,45.5235,147.42,147.34,45.3165]
[1723557777085,45.5242,147.4,147.34,45.3165]
[1723557777286,1.69671288,147.39,147.34,45.3165]
[1723557777700,1.69671288,147.39,147.34,12.0092]
[1723557777899,38.74,147.4,147.34,12.0092]
[1723557778095,40.43671884,147.4,147.34,12.0092]
[1723557778304,38.74,147.38,147.34,12.0092]
[1723557779494,38.74,147.4,147.34,12.0092]
[1723557779811,38.74,147.42,147.35,0.37647]
[1723557780016,38.74,147.42,147.35,0.50196]
[1723557780311,38.74,147.44,147.35,65.50196]
[1723557780692,38.74,147.46,147.37,0.12549]
[1723557780895,38.74,147.44,147.37,0.50196]
[1723557781399,1.69628665,147.43,147.37,0.50196]
[1723557781606,38.74,147.44,147.37,0.50196]
[1723557781607,1.69631414,147.42,147.37,0.50196]
[1723557781910,38.74,147.42,147.37,0.50196]
[1723557783219,38.74,147.46,147.37,1.47545398]
[1723557783396,38.74,147.46,147.37,46.47545398]
[1723557783723,38.74,147.48,147.37,46.47545398]
[1723557784022,20.0,147.47,147.37,45.50196]
[1723557784194,20.0,147.47,147.39,0.12549]
[1723557784393,20.0,147.47,147.39,45.50196]
[1723557784697,38.74,147.48,147.39,0.50196]
[1723557784926,38.74,147.48,147.41,0.12549]
[1723557785225,1.69568017,147.47,147.41,0.50196]
[1723557786216,1.69567552,147.46,147.41,0.50196]
[1723557786420,38.74,147.5,147.43,0.12549]
[1723557786606,45.5197,147.5,147.43,0.50196]
[1723557787000,1.69552027,147.49,147.43,0.50196]
[1723557787316,8.47572706,147.49,147.43,0.50196]
[1723557787519,38.74,147.5,147.43,0.50196]
[1723557787700,38.74,147.5,147.43,45.50196]
[1723557787894,38.74,147.5,147.43,55.53030553]
[1723557788105,38.74,147.5,147.43,45.50196]
[1723557788625,8.47578207,147.49,147.43,0.50196]
[1723557788931,6.7828,147.44,147.4,10.02834553]
[1723557789129,38.74,147.44,147.38,12.5924]
[1723557789504,55.6919,147.48,147.38,12.5924]
[1723557789505,38.74,147.46,147.38,12.5924]
[1723557790405,45.5224,147.44,147.38,12.5924]
[1723557790909,38.74,147.44,147.38,12.5924]
[1723557791642,8.47932023,147.43,147.38,12.5924]
[1723557791937,38.74,147.4,147.34,13.0288]
[1723557792807,38.74,147.38,147.34,13.0288]
[1723557793630,1.69678675,147.37,147.32,33.2197149]
[1723557793807,38.74,147.34,147.32,0.8414149]
[1723557794645,38.74,147.38,147.32,0.8414149]
[1723557794806,38.74,147.36,147.32,0.8414149]
[1723557796216,38.74,147.34,147.32,0.8414149]
[1723557800529,1.69734859,147.33,147.32,0.8414149]
[1723557800825,38.74,147.34,147.32,0.8414149]
[1723557800826,45.5273,147.34,147.32,0.8414149]
[1723557801036,45.527,147.34,147.32,0.8414149]
[1723557801206,45.527,147.34,147.23,10.05960906]
[1723557801207,45.5292,147.3,147.23,10.05960906]
[1723557801403,45.5292,147.3,147.21,22.52870906]
[1723557801404,38.74,147.28,147.21,22.52870906]
[1723557801645,1.69794298,147.27,147.21,12.4691]
[1723557801806,1.69798856,147.26,147.21,22.53164477]
[1723557802008,1.69798856,147.26,147.21,12.4691]
[1723557802228,40.43798856,147.26,147.21,12.4691]
[1723557802408,40.43798856,147.26,147.18,22.53164477]
[1723557802618,38.74,147.24,147.18,22.53164477]
[1723557802931,38.74,147.22,147.17,10.90395967]
[1723557803155,38.74,147.22,147.17,0.8414149]
[1723557803758,1.69879256,147.21,147.17,0.8414149]
[1723557803930,38.74,147.24,147.17,0.8414149]
[1723557804132,19.79229,147.29,147.17,0.8414149]
[1723557804133,38.74,147.26,147.17,0.8414149]
[1723557805129,38.74,147.26,147.18,0.25098]
[1723557805329,38.74,147.26,147.18,20.25098]
[1723557805835,1.69833951,147.25,147.19,0.25098]
[1723557806036,1.6983413,147.24,147.18,20.0]
[1723557806239,38.74,147.26,147.17,20.8414149]
[1723557806447,38.74,147.28,147.17,0.8414149]
[1723557806656,38.74,147.26,147.17,30.92293369]
[1723557806972,40.43828058,147.26,147.17,30.92293369]
[1723557807128,38.74,147.28,147.17,30.92293369]
[1723557807329,38.74,147.28,147.18,45.25098]
[1723557807563,38.74,147.28,147.19,20.12549]
[1723557807746,38.74,147.28,147.2,0.37647]
[1723557807951,38.74,147.28,147.21,0.12549]
[1723557808258,38.74,147.3,147.23,0.12549]
[1723557808431,38.74,147.3,147.23,0.50196]
[1723557808839,38.74,147.32,147.23,45.50196]
[1723557809855,1.69756743,147.31,147.23,45.50196]
[1723557810063,1.69756743,147.31,147.23,0.50196]
[1723557810237,38.74,147.32,147.23,65.50196]
[1723557810438,38.74,147.32,147.23,45.50196]
[1723557810738,20.0,147.31,147.23,45.50196]
[1723557811057,38.74,147.32,147.23,45.50196]
[1723557812073,38.74,147.34,147.23,45.50196]
[1723557812276,38.74,147.36,147.27,0.12549]
[1723557812447,38.74,147.36,147.27,45.50196]
[1723557812839,38.74,147.36,147.29,0.12549]
[1723557813095,38.74,147.38,147.29,0.50196]
[1723557813267,1.69690949,147.37,147.31,0.12549]
[1723557813472,38.74,147.36,147.31,0.37647]
[1723557813666,38.74,147.36,147.32,0.12549]
[1723557813865,38.74,147.38,147.32,0.50196]
[1723557814049,40.43684452,147.38,147.32,0.50196]
[1723557815079,38.74,147.38,147.32,0.50196]
[1723557816762,1.6968053,147.37,147.32,0.50196]
[1723557817379,1.6968053,147.37,147.32,0.12549]
[1723557817585,38.74,147.34,147.28,20.0]
[1723557817754,38.74,147.34,147.27,20.0]
[1723557817951,38.74,147.34,147.26,45.8984]
[1723557817952,1.69719268,147.33,147.26,45.8984]
[1723557818267,38.74,147.34,147.26,45.8984]
[1723557819260,1.69726563,147.33,147.27,0.37647]
[1723557819461,1.69740549,147.32,147.27,0.37647]
[1723557819776,38.74,147.34,147.27,0.37647]
[1723557820077,38.74,147.34,147.27,45.37647]
[1723557820276,40.43711926,147.36,147.27,45.37647]
[1723557820670,38.74,147.36,147.28,0.12549]
[1723557820868,1.69706505,147.35,147.28,0.12549]
[1723557821170,38.74,147.31,147.27,0.37647]
[1723557821372,1.69745904,147.3,147.26,45.8984]
[1723557821584,38.74,147.34,147.26,45.8984]
[1723557822092,38.74,147.36,147.27,45.0]
[1723557822658,38.74,147.38,147.28,21.85955377]
[1723557822880,20.0,147.37,147.3,0.12549]
[1723557823078,38.74,147.36,147.3,0.50196]
[1723557823288,38.74,147.36,147.31,0.12549]
[1723557823459,38.74,147.36,147.31,0.25098]
[1723557823785,38.74,147.36,147.31,0.12549]
[1723557824084,38.74,147.36,147.29,0.12549]
[1723557824085,1.69716102,147.35,147.29,0.12549]
[1723557824254,1.69716102,147.35,147.29,0.50196]
[1723557824458,38.74,147.34,147.26,45.8984]
[1723557824971,38.74,147.32,147.26,45.8984]
[1723557825273,1.69757083,147.31,147.26,45.8984]
[1723557825496,1.69757083,147.31,147.26,13.0877]
[1723557825859,38.74,147.28,147.22,43.8564]
[1723557826157,1.69808459,147.27,147.22,12.0499]
[1723557826363,38.74,147.3,147.22,12.0499]
[1723557827172,38.74,147.3,147.23,20.0]
[1723557827366,38.74,147.32,147.24,45.0]
[1723557827856,38.74,147.32,147.25,0.50196]
[1723557828263,1.69758254,147.31,147.25,0.50196]
[1723557828484,38.74,147.32,147.25,0.50196]
[1723557830175,1.69751705,147.31,147.25,0.50196]
[1723557830498,38.74,147.28,147.22,12.0499]
[1723557830787,1.69796601,147.27,147.22,12.0499]
[1723557830958,38.74,147.26,147.18,53.24991402]
[1723557831155,1.69831784,147.25,147.18,43.1858]
[1723557831360,1.62211853,147.25,147.18,43.1858]
[1723557831562,38.74,147.24,147.18,43.1858]
[1723557832366,38.74,147.28,147.18,43.1858]
[1723557832559,38.74,147.28,147.19,10.07250595]
[1723557832781,38.74,147.28,147.2,30.07250595]
[1723557832985,38.74,147.3,147.2,10.07250595]
[1723557833290,38.74,147.32,147.21,75.07250595]
[1723557833463,20.0,147.31,147.21,75.07250595]
[1723557833771,20.0,147.31,147.22,0.50196]
[1723557833966,38.74,147.3,147.22,0.50196]
[1723557834377,38.74,147.3,147.22,10.57446595]
[1723557834578,1.69769071,147.29,147.24,0.12549]
[1723557834766,1.69769071,147.29,147.24,0.50196]
[1723557834965,1.69769071,147.29,147.24,0.12549]
[1723557835384,38.74,147.28,147.23,0.25098]
[1723557835569,38.74,147.28,147.24,0.12549]
[1723557835957,38.74,147.3,147.24,0.12549]
[1723557836188,38.74,147.3,147.25,0.12549]
[1723557836368,38.74,147.3,147.25,0.37647]
[1723557836569,38.74,147.3,147.26,0.12549]
[1723557836774,38.74,147.3,147.26,0.25098]
[1723557837382,20.0,147.31,147.26,0.25098]
[1723557837594,38.74,147.35,147.27,0.25098]
[1723557837793,38.74,147.28,147.23,12.5986]
[1723557838687,38.74,147.28,147.22,10.07289675]
[1723557839192,38.74,147.28,147.22,10.07886817]
[1723557839581,1.69803119,147.27,147.22,10.07886817]
[1723557839892,38.74,147.28,147.22,10.07886817]
[1723557840267,38.74,147.28,147.23,0.37647]
[1723557840766,38.74,147.3,147.24,0.12549]
[1723557840967,38.74,147.34,147.25,12.7628]
[1723557841272,38.74,147.36,147.26,20.50196]
[1723557841483,45.5261,147.36,147.26,20.50196]
[1723557841682,38.74,147.34,147.26,30.58082817]
[1723557841903,38.74,147.34,147.26,20.50196]
[1723557842191,38.74,147.32,147.26,0.50196]
[1723557842381,38.74,147.3,147.25,22.83630532]
[1723557842585,38.74,147.3,147.25,12.7628]
[1723557842892,1.69781442,147.29,147.23,10.07350532]
[1723557843108,1.69781442,147.29,147.24,0.37647]
[1723557843292,1.69781442,147.29,147.23,10.07350532]
[1723557843293,38.74,147.28,147.23,10.07350532]
[1723557843472,38.74,147.28,147.22,10.07350532]
[1723557843803,38.74,147.3,147.23,10.07350532]
[1723557843964,13.1058,147.36,147.24,10.07350532]
[1723557843965,38.74,147.32,147.24,10.07350532]
[1723557844384,38.74,147.32,147.25,10.07350532]
[1723557844577,38.74,147.34,147.26,10.07350532]
[1723557844783,38.74,147.34,147.27,0.25098]
[1723557845085,38.74,147.34,147.28,0.12549]
[1723557845408,12.5681,147.4,147.28,0.12549]
[1723557845409,38.74,147.38,147.3,0.12549]
[1723557845614,38.74,147.38,147.3,45.50196]
[1723557846117,38.74,147.34,147.29,52.92017072]
[1723557846318,38.74,147.34,147.29,12.187]
[1723557847909,46.52,147.34,147.27,0.12549]
[1723557848089,48.21739405,147.34,147.27,0.50196]
[1723557848605,46.52,147.34,147.27,0.50196]
[1723557848982,46.52,147.34,147.27,0.37647]
[1723557849183,46.52,147.31,147.25,42.8422]
[1723557849516,1.69761429,147.3,147.25,52.92156457]
[1723557849819,1.69768735,147.29,147.25,42.8422]
[1723557850182,46.52,147.31,147.25,12.1822]
[1723557850183,1.69775229,147.3,147.25,12.1822]
[1723557850418,46.52,147.31,147.25,22.26156457]
[1723557850599,20.0,147.33,147.27,10.07936457]
[1723557850913,20.0,147.33,147.26,10.07936457]
[1723557851215,20.0,147.33,147.25,12.1822]
[1723557851424,20.0,147.33,147.25,22.26156457]
[1723557851590,20.0,147.33,147.27,10.07936457]
[1723557851794,20.0,147.33,147.28,0.12549]
[1723557852014,20.0,147.33,147.28,0.25098]
[1723557852213,46.52,147.34,147.28,0.12549]
[1723557852506,46.52,147.34,147.27,10.20798199]
[1723557852821,21.69757177,147.33,147.26,0.37647]
[1723557853026,20.0,147.33,147.27,0.12549]
[1723557853205,20.0,147.33,147.27,10.20599882]
[1723557853392,46.52,147.29,147.27,10.08050882]
[1723557853591,46.52,147.29,147.23,10.08050882]
[1723557853798,46.52,147.29,147.24,10.08050882]
[1723557854313,46.52,147.29,147.23,10.08050882]
[1723557854487,45.0,147.28,147.23,10.08050882]
[1723557854689,53.3093,147.29,147.23,10.08050882]
[1723557854916,1.69806458,147.28,147.23,10.08050882]
[1723557855090,46.52,147.26,147.22,10.08050882]
[1723557855718,46.52,147.26,147.21,10.08050882]
[1723557855915,45.0,147.25,147.2,10.09418236]
[1723557856122,46.52,147.26,147.2,10.09418236]
[1723557856420,1.69839939,147.25,147.2,10.09418236]
[1723557856898,1.69839939,147.25,147.19,10.09418236]
[1723557857105,1.69839939,147.25,147.2,10.09418236]
[1723557857420,46.52,147.26,147.2,10.09418236]
[1723557858000,46.52,147.25,147.19,10.09418236]
[1723557858205,48.21845191,147.25,147.2,10.09418236]
[1723557858399,46.52,147.25,147.2,10.09418236]
[1723557859306,1.69841527,147.24,147.19,10.09418236]
[1723557859510,46.52,147.25,147.18,0.12549]
[1723557859710,53.3098,147.28,147.2,10.08922636]
[1723557859903,66.69840608,147.27,147.2,10.08922636]
[1723557860229,46.52,147.28,147.21,10.21471636]
[1723557860425,46.52,147.28,147.22,10.08922636]
[1723557860994,78.1668,147.31,147.23,10.21471636]
[1723557861200,86.65339566,147.31,147.23,10.08922636]
[1723557861415,46.52,147.28,147.22,10.08922636]